[Event "Najdorf Memorial-B 2022"]
[Site "Warsaw"]
[Date "2022.07.13"]
[Round "5.8"]
[White "Mazurkiewicz, Wojciech"]
[Black "Michalowski, Patryk"]
[Result "0-1"]
[ECO "B22"]
[WhiteElo "1469"]
[BlackElo "1726"]
[Annotator "NA"]
[PlyCount "50"]
[EventDate "2022.07.09"]
[EventType "swiss"]
[EventCountry "POL"]
[SourceTitle "playchess.com"]
[Source "ChessBase"]
[SourceQuality "1"]
[TimeControl "40/5400+30:1800+30"]

1. e4 {[%emt 0:00:04]} c5 {[%emt 0:00:06]} 2. c3 {[%emt 0:00:05]} Nf6 {[%emt 0:00:23]} 3. e5 {[%emt 0:00:09]} Nd5 {[%emt 0:00:05]} 4. d4 {[%emt 0:00:08]} cxd4 {[%emt 0:00:06]} 5. Nf3 {[%emt 0:00:07]} e6 {[%emt 0:00:23]} 6. cxd4 {[%emt 0:00:26]} b6 {[%emt 0:00:15]} 7. Bd2 {[%emt 0:03:50]} Bb7 {[%emt 0:01:11]} 8. Nc3 {[%emt 0:01:31]} Nxc3 {[%emt 0:00:20]} 9. Bxc3 {[%emt 0:01:03]} d6 {[%emt 0:01:11]} 10. Bb5+ {[%emt 0:01:13]} Nd7 {[%emt 0:01:05]} 11. O-O {[%emt 0:01:55]} a6 {[%emt 0:03:32]} 12. Be2 {[%emt 0:02:35]} dxe5 {[%emt 0:02:19]} 13. Nxe5 {[%emt 0:03:54]} Nxe5 {[%emt 0:08:58]} 14. dxe5 {[%emt 0:00:15]} Be7 {[%emt 0:10:11]} 15. Qa4+ {[%emt 0:03:35]} b5 {[%emt 0:01:48]} 16. Qg4 {[%emt 0:00:23]} O-O {[%emt 0:03:43]} 17. Rfd1 {[%emt 0:00:44]} Qc7 {[%emt 0:05:44]} 18. Rac1 {[%emt 0:00:44]} Rfd8 {[%emt 0:01:27]} 19. Bd3 {[%emt 0:05:59]} Rac8 {[%emt 0:04:25]} 20. Qf4 {[%emt 0:17:39]} Qb6 {[%emt 0:02:55]} 21. Be4 {[%emt 0:01:37]} Rc4 {[%emt 0:06:38]} 22. Rxd8+ {[%emt 0:04:02]} Qxd8 {[%emt 0:00:53]} 23. Re1 {[%emt 0:07:54]} Bxe4 {[%emt 0:00:45]} 24. Rxe4 {[%emt 0:06:35]} Qd3 {[%emt 0:01:07]} 25. Qe3 {[%emt 0:19:45]} Qxe4 {[%emt 0:00:11]} 0-1

[Event "Najdorf Memorial-B 2022"]
[Site "Warsaw"]
[Date "2022.07.13"]
[Round "5.9"]
[White "Matskevich, Varvara"]
[Black "Nocek, Dominik"]
[Result "1/2-1/2"]
[ECO "C89"]
[WhiteElo "1467"]
[BlackElo "1682"]
[Annotator "NA"]
[PlyCount "126"]
[EventDate "2022.07.09"]
[EventType "swiss"]
[EventCountry "POL"]
[SourceTitle "playchess.com"]
[Source "ChessBase"]
[SourceQuality "1"]
[TimeControl "40/5400+30:1800+30"]

1. e4 {[%emt 0:00:38]} e5 {[%emt 0:00:06]} 2. Nf3 {[%emt 0:00:55]} Nc6 {[%emt 0:00:06]} 3. Bb5 {[%emt 0:00:35]} a6 {[%emt 0:00:11]} 4. Ba4 {[%emt 0:00:26]} Nf6 {[%emt 0:00:12]} 5. O-O {[%emt 0:00:57]} Be7 {[%emt 0:00:11]} 6. Re1 {[%emt 0:00:47]} b5 {[%emt 0:00:10]} 7. Bb3 {[%emt 0:00:19]} O-O {[%emt 0:00:05]} 8. c3 {[%emt 0:00:57]} d5 {[%emt 0:00:20]} 9. exd5 {[%emt 0:00:24]} Nxd5 {[%emt 0:00:13]} 10. Nxe5 {[%emt 0:00:51]} Nxe5 {[%emt 0:00:08]} 11. Rxe5 {[%emt 0:00:53]} c6 {[%emt 0:00:08]} 12. Bxd5 {[%emt 0:03:16]} cxd5 {[%emt 0:00:07]} 13. Qf3 {[%emt 0:01:39]} Bd6 {[%emt 0:33:49]} 14. Re1 {[%emt 0:00:53]} Re8 {[%emt 0:05:41]} 15. Rxe8+ {[%emt 0:00:27]} Qxe8 {[%emt 0:00:02]} 16. Qe3 {[%emt 0:00:46]} Bd7 {[%emt 0:06:45]} 17. d4 {[%emt 0:05:13]} Qd8 {[%emt 0:13:06]} 18. Qf3 {[%emt 0:03:44]} Qh4 {[%emt 0:04:46]} 19. g3 {[%emt 0:00:23]} Qh3 {[%emt 0:00:09]} 20. Be3 {[%emt 0:01:06]} Rc8 {[%emt 0:04:17]} 21. a3 {[%emt 0:01:00]} a5 {[%emt 0:02:24]} 22. Nd2 {[%emt 0:01:17]} b4 {[%emt 0:02:12]} 23. axb4 {[%emt 0:01:38]} axb4 {[%emt 0:00:36]} 24. cxb4 {[%emt 0:03:51]} Bxb4 {[%emt 0:00:16]} 25. Qg2 {[%emt 0:02:51]} Qh5 {[%emt 0:00:18]} 26. Qf3 {[%emt 0:02:30]} Bg4 {[%emt 0:01:41]} 27. Qf4 {[%emt 0:01:37]} Qh3 {[%emt 0:06:18]} 28. f3 {[%emt 0:03:06]} Bd7 {[%emt 0:02:43]} 29. Nf1 {[%emt 0:02:04]} Bb5 {[%emt 0:02:03]} 30. Bf2 {[%emt 0:01:30]} Be2 {[%emt 0:02:39]} 31. Qe3 {[%emt 0:01:15]} Bc4 {[%emt 0:04:56]} 32. g4 {[%emt 0:02:32]} Bxf1 {[%emt 0:01:02]} 33. Rxf1 {[%emt 0:00:17]} Bd6 {[%emt 0:00:02]} 34. f4 {[%emt 0:02:03]} Qxg4+ {[%emt 0:00:04]} 35. Bg3 {[%emt 0:00:14]} h5 {[%emt 0:01:10]} 36. Qf3 {[%emt 0:00:30]} Qxf3 {[%emt 0:01:20]} 37. Rxf3 {[%emt 0:00:12]} Rc1+ {[%emt 0:00:05]} 38. Kg2 {[%emt 0:00:10]} Rc2+ {[%emt 0:00:15]} 39. Rf2 {[%emt 0:00:07]} Rxf2+ {[%emt 0:00:11]} 40. Kxf2 {[%emt 0:00:00]} Kf8 {[%emt 0:00:00]} 41. f5 {[%emt 0:01:02]} Bb4 {[%emt 0:01:24]} 42. Kf3 {[%emt 0:00:30]} Ke7 {[%emt 0:06:26]} 43. Kf4 {[%emt 0:00:21]} f6 {[%emt 0:00:13]} 44. Ke3 {[%emt 0:00:24]} Kd7 {[%emt 0:00:44]} 45. Kd3 {[%emt 0:00:16]} Kc6 {[%emt 0:00:19]} 46. Kc2 {[%emt 0:00:22]} Kb5 {[%emt 0:01:11]} 47. Kb3 {[%emt 0:00:10]} Be7 {[%emt 0:00:38]} 48. Be1 {[%emt 0:00:38]} Bd6 {[%emt 0:00:37]} 49. h3 {[%emt 0:00:17]} Be7 {[%emt 0:02:17]} 50. Bg3 {[%emt 0:00:08]} Bf8 {[%emt 0:07:31]} 51. Bb8 {[%emt 0:00:29]} Be7 {[%emt 0:17:32]} 52. Ba7 {[%emt 0:01:18]} Bb4 {[%emt 0:02:39]} 53. Bb8 {[%emt 0:06:52]} Be7 {[%emt 0:00:11]} 54. Bg3 {[%emt 0:00:25]} Bf8 {[%emt 0:00:36]} 55. Be1 {[%emt 0:00:08]} Bd6 {[%emt 0:00:11]} 56. Bc3 {[%emt 0:00:17]} Be7 {[%emt 0:00:29]} 57. Kc2 {[%emt 0:00:38]} Bf8 {[%emt 0:00:42]} 58. b3 {[%emt 0:00:45]} Be7 {[%emt 0:00:35]} 59. Kb1 {[%emt 0:00:16]} Bd6 {[%emt 0:03:01]} 60. Ka2 {[%emt 0:00:22]} Bf4 {[%emt 0:00:34]} 61. Kb2 {[%emt 0:02:14]} Bd6 {[%emt 0:00:33]} 62. Bd2 {[%emt 0:00:33]} Bc7 {[%emt 0:00:54]} 63. Ka2 {[%emt 0:00:44]} Bg3 {[%emt 0:00:44]} 1/2-1/2

[Event "Najdorf Memorial-B 2022"]
[Site "Warsaw"]
[Date "2022.07.13"]
[Round "5.10"]
[White "Kobus, Stanislaw"]
[Black "Szewczyk, Michal"]
[Result "1/2-1/2"]
[ECO "B10"]
[WhiteElo "1427"]
[BlackElo "1668"]
[Annotator "NA"]
[PlyCount "68"]
[EventDate "2022.07.09"]
[EventType "swiss"]
[EventCountry "POL"]
[SourceTitle "playchess.com"]
[Source "ChessBase"]
[SourceQuality "1"]
[TimeControl "40/5400+30:1800+30"]

1. e4 {[%emt 0:00:25]} c6 {[%emt 0:00:00]} 2. d3 {[%emt 0:01:49]} d5 {[%emt 0:00:08]} 3. Nd2 {[%emt 0:00:16]} e5 {[%emt 0:01:29]} 4. Ngf3 {[%emt 0:00:34]} Bd6 {[%emt 0:00:18]} 5. Be2 {[%emt 0:02:35]} Nf6 {[%emt 0:00:16]} 6. h3 {[%emt 0:00:50]} O-O {[%emt 0:02:35]} 7. O-O {[%emt 0:01:25]} Ne8 {[%emt 0:03:08]} 8. b3 {[%emt 0:05:07]} f5 {[%emt 0:01:23]} 9. Bb2 {[%emt 0:00:31]} Qe7 {[%emt 0:00:54]} 10. c4 {[%emt 0:14:04]} fxe4 {[%emt 0:04:46]} 11. dxe4 {[%emt 0:02:11]} d4 {[%emt 0:00:32]} 12. Bc1 {[%emt 0:15:16]} Be6 {[%emt 0:09:57]} 13. Nh2 {[%emt 0:07:43]} Nf6 {[%emt 0:03:18]} 14. Ng4 {[%emt 0:02:12]} Nbd7 {[%emt 0:01:35]} 15. Nxf6+ {[%emt 0:01:34]} Nxf6 {[%emt 0:01:35]} 16. Bf3 {[%emt 0:03:21]} Qf7 {[%emt 0:03:52]} 17. Re1 {[%emt 0:03:37]} Qg6 {[%emt 0:02:33]} 18. Kh2 {[%emt 0:02:07]} Rf7 {[%emt 0:08:02]} 19. Nf1 {[%emt 0:02:03]} Raf8 {[%emt 0:11:05]} 20. Ng3 {[%emt 0:06:33]} h6 {[%emt 0:01:40]} 21. a3 {[%emt 0:02:42]} a5 {[%emt 0:02:44]} 22. Ra2 {[%emt 0:02:47]} Qh7 {[%emt 0:04:00]} 23. a4 {[%emt 0:02:49]} b6 {[%emt 0:01:23]} 24. Kg1 {[%emt 0:00:44]} Nd7 {[%emt 0:00:39]} 25. Bg4 {[%emt 0:01:27]} Re8 {[%emt 0:03:19]} 26. Bf5 {[%emt 0:02:47]} g6 {[%emt 0:00:41]} 27. Qg4 {[%emt 0:03:51]} Nf8 {[%emt 0:01:54]} 28. Bxe6 {[%emt 0:01:29]} Nxe6 {[%emt 0:00:16]} 29. Nf5 {[%emt 0:00:21]} Bf8 {[%emt 0:00:13]} 30. Nh4 {[%emt 0:01:12]} Rf6 {[%emt 0:01:50]} 31. f4 {[%emt 0:02:55]} Nxf4 {[%emt 0:02:07]} 32. Bxf4 {[%emt 0:00:10]} Rxf4 {[%emt 0:00:26]} 33. Qxg6+ Qxg6 34. Nxg6 Rf6 1/2-1/2

[Event "Najdorf Memorial-B 2022"]
[Site "Warsaw"]
[Date "2022.07.13"]
[Round "5.11"]
[White "Adamowicz, Michal"]
[Black "Szymkiewicz, Witold"]
[Result "1-0"]
[ECO "B10"]
[WhiteElo "1408"]
[BlackElo "1642"]
[Annotator "NA"]
[PlyCount "103"]
[EventDate "2022.07.09"]
[EventType "swiss"]
[EventCountry "POL"]
[SourceTitle "playchess.com"]
[Source "ChessBase"]
[SourceQuality "1"]
[TimeControl "40/5400+30:1800+30"]

1. e4 {[%emt 0:00:02]} c6 {[%emt 0:00:11]} 2. Nc3 {[%emt 0:00:49]} d5 {[%emt 0:00:12]} 3. Nf3 {[%emt 0:00:04]} dxe4 {[%emt 0:00:11]} 4. Nxe4 {[%emt 0:00:09]} Nf6 {[%emt 0:00:06]} 5. Nxf6+ {[%emt 0:00:14]} exf6 {[%emt 0:00:37]} 6. Bc4 {[%emt 0:00:10]} Bd6 {[%emt 0:00:57]} 7. Qe2+ {[%emt 0:00:09]} Be7 {[%emt 0:01:03]} 8. O-O {[%emt 0:07:06]} O-O {[%emt 0:00:07]} 9. Re1 {[%emt 0:00:07]} Bd6 {[%emt 0:00:41]} 10. d4 {[%emt 0:00:18]} Nd7 {[%emt 0:03:02]} 11. Bd3 {[%emt 0:07:35]} Nb6 {[%emt 0:07:47]} 12. c4 {[%emt 0:01:31]} Bc7 {[%emt 0:02:48]} 13. h3 {[%emt 0:04:10]} Be6 {[%emt 0:02:38]} 14. Qc2 {[%emt 0:00:53]} h6 {[%emt 0:03:06]} 15. b3 {[%emt 0:04:55]} Qd7 {[%emt 0:02:17]} 16. Bb2 {[%emt 0:08:37]} Rad8 {[%emt 0:07:47]} 17. Rad1 {[%emt 0:04:09]} Bf4 {[%emt 0:04:05]} 18. Re4 {[%emt 0:07:31]} Qc7 {[%emt 0:03:30]} 19. g3 {[%emt 0:02:00]} f5 {[%emt 0:06:46]} 20. Rxf4 {[%emt 0:07:14]} g5 {[%emt 0:00:19]} 21. Nxg5 {[%emt 0:00:08]} hxg5 {[%emt 0:00:06]} 22. Rf3 {[%emt 0:00:11]} f6 {[%emt 0:02:43]} 23. Bxf5 {[%emt 0:01:02]} Bxf5 {[%emt 0:00:19]} 24. Qxf5 {[%emt 0:00:14]} Qd7 {[%emt 0:02:30]} 25. Qxd7 {[%emt 0:02:49]} Rxd7 {[%emt 0:00:25]} 26. Re1 {[%emt 0:00:12]} Kg7 {[%emt 0:02:22]} 27. Kg2 {[%emt 0:00:52]} Na8 {[%emt 0:00:42]} 28. Rfe3 {[%emt 0:00:35]} Rff7 {[%emt 0:00:29]} 29. g4 {[%emt 0:03:41]} b5 {[%emt 0:00:59]} 30. Re6 {[%emt 0:02:21]} bxc4 {[%emt 0:00:53]} 31. bxc4 {[%emt 0:00:09]} Rc7 {[%emt 0:01:14]} 32. Bc3 {[%emt 0:06:21]} Nb6 {[%emt 0:05:11]} 33. Ba5 {[%emt 0:00:11]} Rcd7 {[%emt 0:00:20]} 34. Bxb6 {[%emt 0:00:45]} axb6 {[%emt 0:00:01]} 35. Rxc6 {[%emt 0:03:46]} Rxd4 {[%emt 0:00:06]} 36. Ree6 {[%emt 0:00:27]} Rf4 {[%emt 0:00:17]} 37. Rxb6 {[%emt 0:02:13]} Rxc4 {[%emt 0:00:06]} 38. Ra6 {[%emt 0:02:06]} Rf4 {[%emt 0:00:42]} 39. Re3 {[%emt 0:07:34]} f5 {[%emt 0:04:34]} 40. gxf5 {[%emt 0:00:00]} g4 {[%emt 0:00:00]} 41. Rg6+ {[%emt 0:01:24]} Kf8 {[%emt 0:01:42]} 42. hxg4 {[%emt 0:00:11]} Ra4 {[%emt 0:00:11]} 43. a3 {[%emt 0:00:22]} Rfa7 {[%emt 0:00:16]} 44. Kg3 {[%emt 0:00:23]} Kf7 {[%emt 0:00:14]} 45. f3 {[%emt 0:00:26]} Ra8 {[%emt 0:00:39]} 46. Rge6 {[%emt 0:00:32]} R8a7 {[%emt 0:01:09]} 47. g5 {[%emt 0:00:49]} Rxa3 {[%emt 0:01:02]} 48. g6+ {[%emt 0:00:16]} Kg7 {[%emt 0:01:07]} 49. Rxa3 {[%emt 0:00:14]} Rxa3 {[%emt 0:00:07]} 50. Re7+ {[%emt 0:00:48]} Kg8 {[%emt 0:00:16]} 51. f6 {[%emt 0:00:19]} Ra8 {[%emt 0:00:39]} 52. Kg4 {[%emt 0:00:48]} 1-0

[Event "Najdorf Memorial-B 2022"]
[Site "Warsaw"]
[Date "2022.07.13"]
[Round "5.12"]
[White "Machnik, Stanislaw"]
[Black "Iwaszkiewicz, Krzysztof"]
[Result "1-0"]
[ECO "B40"]
[WhiteElo "1381"]
[BlackElo "1630"]
[Annotator "NA"]
[PlyCount "83"]
[EventDate "2022.07.09"]
[EventType "swiss"]
[EventCountry "POL"]
[SourceTitle "playchess.com"]
[Source "ChessBase"]
[SourceQuality "1"]
[TimeControl "40/5400+30:1800+30"]

1. e4 {[%emt 0:00:02]} c5 {[%emt 0:00:03]} 2. Nf3 {[%emt 0:00:04]} e6 {[%emt 0:00:04]} 3. d4 {[%emt 0:00:02]} cxd4 {[%emt 0:00:03]} 4. Nxd4 {[%emt 0:00:05]} Nf6 {[%emt 0:00:07]} 5. Nc3 {[%emt 0:00:10]} Nc6 {[%emt 0:00:03]} 6. Ndb5 {[%emt 0:00:04]} Bb4 {[%emt 0:01:17]} 7. a3 {[%emt 0:02:40]} Bxc3+ {[%emt 0:01:42]} 8. Nxc3 {[%emt 0:00:03]} O-O {[%emt 0:01:00]} 9. Qd6 {[%emt 0:06:50]} Qe7 {[%emt 0:02:16]} 10. Bf4 {[%emt 0:07:09]} Ne8 {[%emt 0:01:54]} 11. Qxe7 {[%emt 0:00:40]} Nxe7 {[%emt 0:00:01]} 12. O-O-O {[%emt 0:02:33]} f5 {[%emt 0:00:10]} 13. exf5 {[%emt 0:08:45]} Nxf5 {[%emt 0:00:40]} 14. Bb5 {[%emt 0:01:28]} d5 {[%emt 0:00:18]} 15. Bxe8 {[%emt 0:01:08]} Rxe8 {[%emt 0:00:08]} 16. Nb5 {[%emt 0:00:29]} Bd7 {[%emt 0:18:43]} 17. Nc7 {[%emt 0:00:06]} Rac8 {[%emt 0:00:04]} 18. Nxe8 {[%emt 0:00:05]} Bxe8 {[%emt 0:00:13]} 19. Rhe1 {[%emt 0:02:53]} Kf7 {[%emt 0:00:33]} 20. g4 {[%emt 0:02:26]} Nh4 {[%emt 0:01:07]} 21. Bg3 {[%emt 0:00:26]} Nf3 {[%emt 0:00:28]} 22. Re3 {[%emt 0:01:25]} Ng5 {[%emt 0:00:09]} 23. f4 {[%emt 0:04:59]} Ne4 {[%emt 0:00:45]} 24. f5 {[%emt 0:00:05]} Rc5 {[%emt 0:11:55]} 25. Rf1 {[%emt 0:05:40]} Ke7 {[%emt 0:05:05]} 26. fxe6 {[%emt 0:06:39]} Bg6 {[%emt 0:00:19]} 27. Be1 {[%emt 0:15:40]} d4 {[%emt 0:01:26]} 28. Rxe4 {[%emt 0:03:08]} Bxe4 {[%emt 0:01:18]} 29. Bb4 {[%emt 0:00:05]} b6 {[%emt 0:00:11]} 30. Bxc5+ {[%emt 0:01:10]} bxc5 {[%emt 0:00:06]} 31. Rf7+ {[%emt 0:00:22]} Kxe6 {[%emt 0:00:05]} 32. Rxg7 {[%emt 0:00:06]} Kf6 {[%emt 0:00:06]} 33. Rxa7 {[%emt 0:00:45]} Kg5 {[%emt 0:00:03]} 34. Rc7 {[%emt 0:02:49]} Kxg4 {[%emt 0:00:08]} 35. Rxc5 {[%emt 0:02:17]} h5 {[%emt 0:00:07]} 36. a4 {[%emt 0:02:20]} h4 {[%emt 0:00:12]} 37. a5 {[%emt 0:00:14]} Kh3 {[%emt 0:00:04]} 38. Rh5 {[%emt 0:00:44]} Bf3 {[%emt 0:00:13]} 39. Rh8 {[%emt 0:00:21]} Be2 {[%emt 0:00:09]} 40. Kd2 {[%emt 0:00:00]} d3 {[%emt 0:00:00]} 41. cxd3 {[%emt 0:02:10]} Kxh2 {[%emt 0:00:19]} 42. Kxe2 {[%emt 0:00:13]} 1-0

[Event "Najdorf Memorial-B 2022"]
[Site "Warsaw"]
[Date "2022.07.13"]
[Round "5.13"]
[White "Dropia, Rafal"]
[Black "Jaroszuk, Marcin"]
[Result "0-1"]
[ECO "A45"]
[WhiteElo "1624"]
[BlackElo "1476"]
[Annotator "NA"]
[PlyCount "62"]
[EventDate "2022.07.09"]
[EventType "swiss"]
[EventCountry "POL"]
[SourceTitle "playchess.com"]
[Source "ChessBase"]
[SourceQuality "1"]
[TimeControl "40/5400+30:1800+30"]

1. d4 Nf6 {[%emt 0:01:21]} 2. Bf4 {[%emt 0:00:10]} c5 {[%emt 0:00:36]} 3. e3 {[%emt 0:01:10]} Qb6 {[%emt 0:00:20]} 4. Nc3 {[%emt 0:01:32]} a6 {[%emt 0:00:45]} 5. Na4 {[%emt 0:02:35]} Qa5+ {[%emt 0:00:20]} 6. c3 {[%emt 0:00:05]} d6 {[%emt 0:01:29]} 7. dxc5 {[%emt 0:21:20]} dxc5 {[%emt 0:01:38]} 8. Bxb8 {[%emt 0:38:14]} Rxb8 {[%emt 0:01:34]} 9. Qc2 {[%emt 0:00:02]} e6 {[%emt 0:05:11]} 10. b3 {[%emt 0:00:23]} b5 {[%emt 0:02:04]} 11. Nb2 {[%emt 0:00:02]} Nd5 {[%emt 0:00:58]} 12. Ne2 {[%emt 0:01:04]} Bb7 {[%emt 0:05:34]} 13. e4 {[%emt 0:01:55]} Nf6 {[%emt 0:00:53]} 14. Ng3 {[%emt 0:02:45]} Bd6 {[%emt 0:05:17]} 15. Bd3 {[%emt 0:01:30]} Be5 {[%emt 0:06:32]} 16. Ne2 {[%emt 0:00:14]} Qc7 {[%emt 0:05:45]} 17. h3 {[%emt 0:06:42]} Rd8 {[%emt 0:06:04]} 18. Rd1 {[%emt 0:04:24]} Ke7 {[%emt 0:14:13]} 19. O-O {[%emt 0:01:39]} g5 {[%emt 0:02:08]} 20. f3 {[%emt 0:03:42]} Nh5 {[%emt 0:02:23]} 21. a4 {[%emt 0:01:06]} Bc6 {[%emt 0:06:33]} 22. axb5 {[%emt 0:02:47]} axb5 {[%emt 0:00:11]} 23. Ra1 {[%emt 0:00:46]} Nf4 {[%emt 0:01:31]} 24. Nxf4 {[%emt 0:00:25]} Bxf4 {[%emt 0:01:03]} 25. Qe2 {[%emt 0:03:37]} Rd7 {[%emt 0:05:33]} 26. Rfd1 {[%emt 0:00:47]} Rhd8 {[%emt 0:02:10]} 27. Bxb5 {[%emt 0:00:46]} Rd2 {[%emt 0:01:58]} 28. Rxd2 {[%emt 0:02:28]} Rxd2 {[%emt 0:00:14]} 29. Qc4 {[%emt 0:00:27]} Be3+ {[%emt 0:01:56]} 30. Kh1 {[%emt 0:00:46]} Qg3 {[%emt 0:03:23]} 31. Nd3 {[%emt 0:01:10]} Qxg2# 0-1

[Event "Najdorf Memorial-B 2022"]
[Site "Warsaw"]
[Date "2022.07.13"]
[Round "5.14"]
[White "Kalus, Franciszek"]
[Black "Kurowski, Maciej"]
[Result "0-1"]
[ECO "D31"]
[WhiteElo "1344"]
[BlackElo "1601"]
[Annotator "NA"]
[PlyCount "78"]
[EventDate "2022.07.09"]
[EventType "swiss"]
[EventCountry "POL"]
[SourceTitle "playchess.com"]
[Source "ChessBase"]
[SourceQuality "1"]
[TimeControl "40/5400+30:1800+30"]

1. d4 {[%emt 0:07:59]} d5 {[%emt 0:00:13]} 2. c4 {[%emt 0:00:00]} c6 {[%emt 0:00:08]} 3. Nf3 {[%emt 0:00:02]} e6 {[%emt 0:00:27]} 4. Nc3 {[%emt 0:00:06]} dxc4 {[%emt 0:00:33]} 5. e3 {[%emt 0:00:14]} b5 {[%emt 0:00:25]} 6. a4 {[%emt 0:00:04]} Bb4 {[%emt 0:00:17]} 7. Bd2 {[%emt 0:00:11]} a5 {[%emt 0:00:57]} 8. axb5 {[%emt 0:00:19]} Bxc3 {[%emt 0:00:08]} 9. Bxc3 {[%emt 0:00:03]} cxb5 {[%emt 0:00:07]} 10. b3 {[%emt 0:00:24]} Bb7 {[%emt 0:00:14]} 11. bxc4 {[%emt 0:00:12]} b4 {[%emt 0:00:08]} 12. Bb2 {[%emt 0:00:07]} Nf6 {[%emt 0:00:12]} 13. Bd3 {[%emt 0:00:30]} Nbd7 {[%emt 0:00:15]} 14. O-O {[%emt 0:00:51]} O-O 15. Bc2 Qc7 {[%emt 0:13:58]} 16. Nd2 {[%emt 0:05:16]} e5 {[%emt 0:07:13]} 17. d5 {[%emt 0:05:22]} Ba6 {[%emt 0:13:07]} 18. Bb3 {[%emt 0:03:04]} Nc5 {[%emt 0:03:41]} 19. f4 {[%emt 0:11:36]} Nd3 {[%emt 0:12:22]} 20. Qc2 {[%emt 0:00:17]} Nxb2 {[%emt 0:00:42]} 21. Qxb2 {[%emt 0:00:05]} exf4 {[%emt 0:04:36]} 22. Rxf4 {[%emt 0:01:26]} Nd7 {[%emt 0:09:59]} 23. Qd4 {[%emt 0:03:41]} Bb7 {[%emt 0:10:16]} 24. Ne4 {[%emt 0:07:12]} f5 {[%emt 0:01:57]} 25. Ng5 {[%emt 0:04:34]} Nc5 {[%emt 0:01:21]} 26. Bc2 {[%emt 0:01:12]} g6 {[%emt 0:03:36]} 27. Rh4 {[%emt 0:02:01]} h5 {[%emt 0:01:22]} 28. Rf1 {[%emt 0:09:41]} Qe7 {[%emt 0:05:04]} 29. Rh3 {[%emt 0:06:07]} b3 {[%emt 0:02:38]} 30. Bxf5 {[%emt 0:06:07]} Rxf5 {[%emt 0:06:31]} 31. Rxf5 {[%emt 0:00:01]} b2 {[%emt 0:00:50]} 32. Qxb2 {[%emt 0:00:47]} gxf5 {[%emt 0:00:13]} 33. Rg3 {[%emt 0:00:29]} h4 {[%emt 0:00:55]} 34. Nf7+ {[%emt 0:01:24]} hxg3 {[%emt 0:00:11]} 35. Qh8+ {[%emt 0:00:07]} Kxf7 {[%emt 0:00:02]} 36. Qh7+ {[%emt 0:00:36]} Ke8 {[%emt 0:00:14]} 37. Qh5+ {[%emt 0:00:12]} Kd8 {[%emt 0:00:28]} 38. Qh8+ {[%emt 0:00:09]} Kc7 {[%emt 0:00:16]} 39. d6+ {[%emt 0:00:05]} Qxd6 {[%emt 0:00:44]} 0-1

[Event "Najdorf Memorial-B 2022"]
[Site "Warsaw"]
[Date "2022.07.13"]
[Round "5.15"]
[White "Bartoszczuk, Adam"]
[Black "Wnuk, Piotr"]
[Result "1/2-1/2"]
[ECO "B04"]
[WhiteElo "1596"]
[BlackElo "1412"]
[Annotator "NA"]
[PlyCount "53"]
[EventDate "2022.07.09"]
[EventType "swiss"]
[EventCountry "POL"]
[SourceTitle "playchess.com"]
[Source "ChessBase"]
[SourceQuality "1"]
[TimeControl "40/5400+30:1800+30"]

1. e4 {[%emt 0:00:01]} Nf6 {[%emt 0:00:07]} 2. e5 {[%emt 0:00:06]} Nd5 {[%emt 0:00:04]} 3. d4 {[%emt 0:00:07]} d6 {[%emt 0:00:03]} 4. Nf3 {[%emt 0:00:06]} Nc6 {[%emt 0:00:10]} 5. c4 {[%emt 0:00:14]} Nb6 {[%emt 0:00:15]} 6. e6 {[%emt 0:00:12]} fxe6 {[%emt 0:00:31]} 7. Nc3 {[%emt 0:00:21]} g6 {[%emt 0:00:21]} 8. h4 {[%emt 0:00:23]} e5 {[%emt 0:09:49]} 9. d5 {[%emt 0:02:54]} Nb8 {[%emt 0:01:39]} 10. h5 {[%emt 0:19:23]} Bg7 {[%emt 0:09:55]} 11. hxg6 {[%emt 0:01:56]} hxg6 {[%emt 0:01:13]} 12. Rxh8+ {[%emt 0:00:09]} Bxh8 {[%emt 0:00:06]} 13. Bd3 {[%emt 0:01:13]} Bf5 {[%emt 0:00:57]} 14. Nh4 {[%emt 0:39:00]} e6 {[%emt 0:23:31]} 15. Nxg6 {[%emt 0:04:33]} e4 {[%emt 0:10:25]} 16. Qh5 {[%emt 0:08:30]} Bxc3+ {[%emt 0:02:18]} 17. bxc3 {[%emt 0:00:09]} Qf6 {[%emt 0:02:21]} 18. Ne5+ {[%emt 0:11:26]} Kf8 {[%emt 0:01:38]} 19. Bh6+ {[%emt 0:05:55]} Kg8 {[%emt 0:00:13]} 20. Kd2 {[%emt 0:03:13]} Na6 {[%emt 0:08:05]} 21. Ng4 {[%emt 0:00:23]} Bxg4 {[%emt 0:00:21]} 22. Qxg4+ {[%emt 0:00:03]} Kf7 {[%emt 0:00:37]} 23. Qxe6+ {[%emt 0:00:19]} Qxe6 {[%emt 0:00:21]} 24. dxe6+ {[%emt 0:00:01]} Kxe6 {[%emt 0:00:07]} 25. Bxe4 {[%emt 0:00:07]} Nxc4+ {[%emt 0:01:02]} 26. Kc2 {[%emt 0:00:18]} Nc5 {[%emt 0:00:43]} 27. Bf3 {[%emt 0:00:54]} 1/2-1/2

[Event "Najdorf Memorial-B 2022"]
[Site "Warsaw"]
[Date "2022.07.13"]
[Round "5.16"]
[White "Rog, Mateusz"]
[Black "Jaszczuk, Piotr"]
[Result "0-1"]
[ECO "E13"]
[WhiteElo "1564"]
[BlackElo "1389"]
[Annotator "NA"]
[PlyCount "84"]
[EventDate "2022.07.09"]
[EventType "swiss"]
[EventCountry "POL"]
[SourceTitle "playchess.com"]
[Source "ChessBase"]
[SourceQuality "1"]
[TimeControl "40/5400+30:1800+30"]

1. d4 {[%emt 0:00:03]} Nf6 {[%emt 0:00:06]} 2. Nf3 {[%emt 0:00:08]} e6 {[%emt 0:00:13]} 3. c4 {[%emt 0:00:06]} b6 {[%emt 0:00:09]} 4. Nc3 {[%emt 0:00:21]} Bb4 {[%emt 0:00:24]} 5. Bg5 {[%emt 0:02:21]} h6 {[%emt 0:01:17]} 6. Bh4 {[%emt 0:00:06]} Bb7 {[%emt 0:00:20]} 7. e3 {[%emt 0:02:25]} g5 {[%emt 0:00:21]} 8. Bg3 {[%emt 0:00:28]} Ne4 {[%emt 0:00:53]} 9. Qc2 {[%emt 0:01:02]} Bxc3+ {[%emt 0:00:55]} 10. bxc3 {[%emt 0:00:06]} d6 {[%emt 0:00:06]} 11. Bd3 {[%emt 0:00:13]} f5 {[%emt 0:00:10]} 12. O-O {[%emt 0:04:36]} Nd7 {[%emt 0:00:39]} 13. Nd2 {[%emt 0:02:03]} Nxd2 {[%emt 0:01:07]} 14. Qxd2 {[%emt 0:00:07]} Qf6 {[%emt 0:00:13]} 15. f3 {[%emt 0:01:06]} O-O-O {[%emt 0:01:10]} 16. a4 {[%emt 0:00:49]} Rdg8 {[%emt 0:00:41]} 17. a5 {[%emt 0:00:31]} h5 {[%emt 0:00:32]} 18. axb6 {[%emt 0:05:49]} axb6 {[%emt 0:00:07]} 19. e4 {[%emt 0:01:32]} f4 {[%emt 0:00:35]} 20. Bf2 {[%emt 0:01:44]} e5 {[%emt 0:01:54]} 21. c5 {[%emt 0:00:23]} g4 {[%emt 0:01:25]} 22. fxg4 {[%emt 0:01:14]} hxg4 {[%emt 0:00:41]} 23. g3 {[%emt 0:05:59]} f3 {[%emt 0:04:52]} 24. Be3 {[%emt 0:00:24]} Qg6 {[%emt 0:01:10]} 25. c6 {[%emt 0:08:57]} Bxc6 {[%emt 0:01:10]} 26. d5 {[%emt 0:00:07]} Bb7 {[%emt 0:00:29]} 27. Qa2 {[%emt 0:01:14]} Nb8 {[%emt 0:02:14]} 28. Qa4 {[%emt 0:01:58]} Rh3 {[%emt 0:01:38]} 29. Rf2 {[%emt 0:00:29]} Rgh8 {[%emt 0:01:23]} 30. Raa2 {[%emt 0:00:52]} Qh5 {[%emt 0:05:37]} 31. Bb5 {[%emt 0:00:27]} Rxg3+ {[%emt 0:01:30]} 32. Kf1 {[%emt 0:02:11]} Qh3+ {[%emt 0:01:06]} 33. Ke1 {[%emt 0:00:06]} Rg1+ {[%emt 0:00:17]} 34. Kd2 {[%emt 0:00:58]} Rg2 {[%emt 0:00:53]} 35. Kd3 {[%emt 0:00:25]} Qxh2 {[%emt 0:06:05]} 36. Qc4 {[%emt 0:06:30]} Qh1 {[%emt 0:03:01]} 37. Bxb6 {[%emt 0:00:47]} Qb1+ {[%emt 0:02:41]} 38. Rac2 {[%emt 0:02:24]} Rh7 {[%emt 0:01:09]} 39. Be3 {[%emt 0:08:20]} g3 {[%emt 0:02:38]} 40. Rxg2 {[%emt 0:00:00]} fxg2 {[%emt 0:00:00]} 41. Kd2 {[%emt 0:04:06]} g1=Q {[%emt 0:01:24]} 42. Bxg1 {[%emt 0:00:04]} Qxg1 {[%emt 0:00:07]} 0-1